fUSD/lending_fUSD_20240425
["ID","MTS","AMOUNT","RATE_DAILY","PERIOD"]
[323487830,1714047040795,-500.0,0.00011899,2]
[323487832,1714047040805,-500.0,0.00011899,2]
[323487835,1714047040814,-500.0,0.00011899,2]
[323487837,1714047040823,-500.0,0.00011899,2]
[323487838,1714047040832,-500.0,0.00011899,2]
[323487841,1714047040842,-594.8,0.00011899,2]
[323487843,1714047040852,-500.0,0.00011899,2]
[323487846,1714047040861,-500.0,0.00011899,2]
[323487849,1714047040870,-500.0,0.00011899,2]
[323487852,1714047040879,-500.0,0.00011899,2]
[323487855,1714047040888,-500.0,0.00011899,2]
[323487858,1714047040897,-590.43581003,0.00011899,2]
[323487861,1714047040906,-514.68,0.00011899,2]
[323487864,1714047040916,-500.0,0.00011899,2]
[323487865,1714047040925,-500.0,0.00011899,2]
[323487866,1714047040934,-508.4744627,0.00011899,2]
[323487867,1714047040944,-1190.21,0.00011899,2]
[323487868,1714047040953,-500.0,0.00011899,2]
[323487869,1714047040962,-500.0,0.00011899,2]
[323487870,1714047040971,-500.0,0.00011899,2]
[323487871,1714047040980,-503.89755818,0.00011899,2]
[323487872,1714047040991,-500.0,0.00011899,2]
[323487873,1714047041000,-500.0,0.00011899,2]
[323487874,1714047041009,-517.29033168,0.00011899,2]
[323487875,1714047041018,-500.0,0.00011899,2]
[323487876,1714047041027,-500.0,0.00011899,2]
[323487877,1714047041036,-500.0,0.00011899,2]
[323487878,1714047041046,-500.0,0.00011899,2]
[323487879,1714047041055,-765.63,0.00011899,2]
[323487880,1714047041064,-500.0,0.00011899,2]
[323487881,1714047041073,-500.0,0.00011899,2]
[323487882,1714047041082,-571.5063466,0.00011899,2]
[323487883,1714047041091,-500.0,0.00011899,2]
[323487884,1714047041099,-500.0,0.00011899,2]
[323487885,1714047041108,-500.0,0.00011899,2]
[323487886,1714047041117,-500.0,0.00011899,2]
[323487887,1714047041126,-540.63650867,0.00011899,2]
[323487888,1714047041135,-500.0,0.00011899,2]
[323487889,1714047041145,-500.0,0.00011899,2]
[323487890,1714047041154,-909.29,0.00011899,2]
[323487891,1714047041162,-500.0,0.00011899,2]
[323487892,1714047041172,-500.0,0.00011899,2]
[323487893,1714047041181,-500.0,0.00011899,2]
[323487894,1714047041191,-367.0433226,0.00011899,2]
[323487895,1714047041211,-500.0,0.00011899,2]
[323487896,1714047041223,-500.0,0.00011899,2]
[323487897,1714047041233,-523.81032441,0.00011899,2]
[323487898,1714047041243,-555.01436582,0.00011899,2]
[323487899,1714047041252,-500.0,0.00011899,2]
[323487900,1714047041263,-508.57551046,0.00011899,2]
[323487901,1714047041273,-500.0,0.00011899,2]
[323487902,1714047041282,-500.0,0.00011899,2]
[323487903,1714047041292,-500.0,0.00011899,2]
[323487904,1714047041304,-500.0,0.00011899,2]
[323487905,1714047041315,-500.0,0.00011899,2]
[323487906,1714047041324,-501.91040959,0.00011899,2]
[323487907,1714047041334,-504.95385244,0.00011899,2]
[323487908,1714047041343,-500.0,0.00011899,2]
[323487909,1714047041353,-500.0,0.00011899,2]
[323487910,1714047041362,-448.86910571,0.00011899,2]
[323487911,1714047041371,-500.0,0.00011899,2]
[323487912,1714047041381,-500.0,0.00011899,2]
[323487913,1714047041391,-969.3,0.00011899,2]
[323487914,1714047041400,-500.0,0.00011899,2]
[323487915,1714047041409,-500.0,0.00011899,2]
[323487916,1714047041419,-523.83669044,0.00011899,2]
[323487917,1714047041428,-500.0,0.00011899,2]
[323487918,1714047041437,-500.0,0.00011899,2]
[323487919,1714047041446,-500.0,0.00011899,2]
[323487920,1714047041455,-577.86,0.00011899,2]
[323487921,1714047041464,-500.0,0.00011899,2]
[323487922,1714047041474,-500.0,0.00011899,2]
[323487923,1714047041483,-500.0,0.00011899,2]
[323487924,1714047041495,-500.0,0.00011899,2]
[323487925,1714047041504,-500.58164907,0.00011899,2]
[323487926,1714047041518,-500.0,0.00011899,2]
[323487927,1714047041537,-500.0,0.00011899,2]
[323487928,1714047041546,-500.0,0.00011899,2]
[323487929,1714047041555,-500.0,0.00011899,2]
[323487930,1714047041564,-500.0,0.00011899,2]
[323487931,1714047041573,-500.0,0.00011899,2]
[323487932,1714047041583,-500.0,0.00011899,2]
[323487933,1714047041592,-500.0,0.00011899,2]
[323487934,1714047041601,-639.2455441,0.00011899,2]
[323487935,1714047041612,-3506.41,0.00011899,2]
[323487936,1714047041621,-1465.16,0.00011899,2]
[323487937,1714047041630,-500.0,0.00011899,2]
[323487938,1714047041641,-563.83610594,0.00011899,2]
[323487939,1714047041650,-500.85893689,0.00011899,2]
[323487940,1714047041659,-500.0,0.00011899,2]
[323487941,1714047041669,-500.0,0.00011899,2]
[323487942,1714047041678,-499.97953853,0.00011899,2]
[323487943,1714047041687,-642.31924095,0.00011899,2]
[323487944,1714047041696,-500.0,0.00011899,2]
[323487945,1714047041705,-500.0,0.00011899,2]
[323487946,1714047041714,-500.0,0.00011899,2]
[323487947,1714047041723,-500.0,0.00011899,2]
[323487948,1714047041732,-500.0,0.00011899,2]
[323487949,1714047041742,-500.0,0.00011899,2]
[323487950,1714047041752,-1346.08,0.00011899,2]
[323487951,1714047041761,-500.0,0.00011899,2]
[323487952,1714047041770,-500.0,0.00011899,2]
[323487953,1714047041779,-500.0,0.00011899,2]
[323487954,1714047041789,-234.61252294,0.00011899,2]
[323487955,1714047041798,-500.0,0.00011899,2]
[323487956,1714047041807,-500.0,0.00011899,2]
[323487957,1714047041817,-16791.44,0.00011899,2]
[323487958,1714047041827,-1877.09,0.00011899,2]
[323487959,1714047041836,-500.0,0.00011899,2]
[323487960,1714047041846,-346.26841891,0.00011899,2]
[323487961,1714047041855,-234.93805359,0.00011899,2]
[323487962,1714047041864,-500.0,0.00011899,2]
[323487963,1714047041873,-186.94819672,0.00011899,2]
[323487964,1714047041883,-500.0,0.00011899,2]
[323487965,1714047041892,-500.0,0.00011899,2]
[323487966,1714047041902,-500.0,0.00011899,2]
[323487967,1714047041911,-506.58555054,0.00011899,2]
[323487968,1714047041921,-500.0,0.00011899,2]
[323487969,1714047041930,-500.0,0.00011899,2]
[323487970,1714047041939,-500.0,0.00011899,2]
[323487971,1714047041949,-500.0,0.00011899,2]
[323487972,1714047041958,-3607.78,0.00011899,2]
[323487973,1714047041968,-472.3308992,0.00011899,2]
[323487974,1714047041978,-1418.69,0.00011899,2]
[323487975,1714047041988,-500.0,0.00011899,2]
[323487976,1714047041999,-500.0,0.00011899,2]
[323487977,1714047042008,-500.0,0.00011899,2]
[323487978,1714047042017,-635.27661698,0.00011899,2]
[323487979,1714047042028,-500.0,0.00011899,2]
[323487980,1714047042037,-500.0,0.00011899,2]
[323487981,1714047042046,-500.0,0.00011899,2]
[323487982,1714047042056,-500.0,0.00011899,2]
[323487983,1714047042065,-1028.67,0.00011899,2]
[323487984,1714047042074,-431.34023431,0.00011899,2]
[323487985,1714047042084,-500.0,0.00011899,2]
[323487986,1714047042094,-515.08825098,0.00011899,2]
[323487987,1714047042105,-2556.12,0.00011899,2]
[323487988,1714047042116,-501.50920273,0.00011899,2]
[323487989,1714047042127,-500.0,0.00011899,2]
[323487990,1714047042138,-232.52079518,0.00011899,2]
[323487991,1714047042147,-500.0,0.00011899,2]
[323487992,1714047042157,-500.0,0.00011899,2]
[323487993,1714047042167,-500.0,0.00011899,2]
[323487994,1714047042177,-504.34733002,0.00011899,2]
[323487995,1714047042187,-500.0,0.00011899,2]
[323487996,1714047042197,-500.0,0.00011899,2]
[323487997,1714047042208,-500.0,0.00011899,2]
[323487998,1714047042218,-500.0,0.00011899,2]
[323487999,1714047042232,-500.0,0.00011899,2]
[323488000,1714047042245,-500.0,0.00011899,2]
[323488001,1714047042255,-500.0,0.00011899,2]
[323488002,1714047042267,-504.59,0.00011899,2]
[323488003,1714047042277,-284.18477982,0.00011899,2]
[323488004,1714047042286,-500.0,0.00011899,2]
[323488005,1714047042295,-500.0,0.00011899,2]
[323488006,1714047042308,-500.0,0.00011899,2]
[323488007,1714047042318,-500.0,0.00011899,2]
[323488008,1714047042328,-500.0,0.00011899,2]
[323488009,1714047042337,-500.0,0.00011899,2]
[323488010,1714047042347,-500.0,0.00011899,2]
[323488011,1714047042357,-500.0,0.00011899,2]
[323488012,1714047042367,-500.0,0.00011899,2]
[323488013,1714047042377,-198.29636428,0.00011899,2]
[323488014,1714047042387,-1203.87,0.00011899,2]
[323488015,1714047042397,-500.0,0.00011899,2]
[323488016,1714047042407,-500.0,0.00011899,2]
[323488017,1714047042416,-503.90830767,0.00011899,2]
[323488018,1714047042425,-500.0,0.00011899,2]
[323488019,1714047042435,-577.44849648,0.00011899,2]
[323488020,1714047042444,-500.0,0.00011899,2]
[323488021,1714047042454,-500.0,0.00011899,2]
[323488022,1714047042463,-500.0,0.00011899,2]
[323488023,1714047042473,-500.0,0.00011899,2]
[323488024,1714047042483,-265819.19149766,0.000119,2]
[323488025,1714047042767,-473.3383626,0.000119,2]
[323488031,1714047043169,-5132.03954734,0.000119,2]
[323488034,1714047043180,-805.6652269,0.000119,2]
[323488036,1714047043191,-784.0,0.000119,2]
[323488038,1714047043206,-76173.24836775,0.000119,2]
[323488041,1714047043217,-255.471,0.000119,2]
[323488042,1714047043229,-392.7047,0.000119,2]
[323488043,1714047043243,-28284.43989474,0.000119,2]
[323488044,1714047043286,-6585.8,0.000119,2]
[323488045,1714047043298,-5128.81878843,0.000119,2]
[323488046,1714047043315,-12492.51817066,0.000119,2]
[323488047,1714047043545,-500.0,0.00011898,2]
[323488048,1714047043555,-34791.22786549,0.000119,2]
[323488049,1714047043566,-432.0,0.000119,2]
[323488050,1714047043577,-6600.4,0.000119,2]
[323488051,1714047043589,-1101.91510983,0.000119,2]
[323488052,1714047043600,-3343.6,0.000119,2]
[323488054,1714047043611,-1022.864,0.000119,2]
[323488055,1714047043622,-17253.97742079,0.000119,2]
[323488056,1714047043633,-538.03464085,0.000119,2]
[323488057,1714047043644,-12547.04461993,0.000119,2]
[323488058,1714047043665,-2498.7873319,0.000119,2]
[323488059,1714047043676,-19501.36205714,0.000119,2]
[323488060,1714047043685,-412.48218212,0.00011985,2]
[323488061,1714047043695,-500.0,0.00011985,2]
[323488062,1714047043703,-500.0,0.00011986,2]
[323488063,1714047043713,-500.0,0.00011986,2]
[323488064,1714047043722,-500.0,0.00011986,2]
[323488065,1714047043733,-500.0,0.00011986,2]
[323488066,1714047043744,-500.0,0.00011986,2]
[323488068,1714047043753,-500.0,0.00011986,2]
[323488069,1714047043764,-500.0,0.00011986,2]
[323488070,1714047043773,-610.84897656,0.00011986,2]
[323488071,1714047043784,-500.0,0.00011986,2]
[323488072,1714047043794,-500.0,0.00011986,2]
[323488073,1714047043804,-500.0,0.00011986,2]
[323488074,1714047043814,-500.0,0.00011986,2]
[323488075,1714047043823,-505.58,0.00011986,2]
[323488076,1714047043832,-516.03482784,0.00011986,2]
[323488077,1714047043841,-500.0,0.00011986,2]
[323488078,1714047043850,-525.01960768,0.00011986,2]
[323488079,1714047043859,-484.32336462,0.00011986,2]
[323488080,1714047043868,-591.68551201,0.00011986,2]
[323488081,1714047043877,-500.0,0.00011986,2]
[323488082,1714047043886,-500.0,0.00011986,2]
[323488083,1714047043898,-500.0,0.00011986,2]
[323488084,1714047043908,-500.0,0.00011986,2]
[323488085,1714047043918,-500.0,0.00011986,2]
[323488086,1714047043928,-345.63280796,0.00011987,2]
[323488087,1714047043937,-500.0,0.00011987,2]
[323488088,1714047043946,-500.0,0.00011987,2]
[323488089,1714047043955,-500.0,0.00011987,2]
[323488090,1714047043964,-500.0,0.00011987,2]
[323488091,1714047043973,-500.0,0.00011987,2]
[323488092,1714047043983,-501.38517111,0.00011987,2]
[323488093,1714047043995,-500.0,0.00011987,2]
[323488094,1714047044005,-500.0,0.00011987,2]
[323488095,1714047044015,-501.68042887,0.00011987,2]
[323488096,1714047044025,-500.0,0.00011987,2]
[323488097,1714047044035,-500.0,0.00011987,2]
[323488098,1714047044045,-500.0,0.00011987,2]
[323488099,1714047044057,-506.21595808,0.00011987,2]
[323488100,1714047044069,-500.0,0.00011987,2]
[323488101,1714047044081,-500.0,0.00011987,2]
[323488102,1714047044091,-512.28227857,0.00011987,2]
[323488103,1714047044101,-501.6310825,0.00011987,2]
[323488104,1714047044111,-500.0,0.00011987,2]
[323488105,1714047044120,-490.58382946,0.00011987,2]
[323488106,1714047044130,-500.0,0.00011987,2]
[323488107,1714047044140,-500.0,0.00011987,2]
[323488108,1714047044150,-531.49,0.00011987,2]
[323488109,1714047044159,-500.0,0.00011987,2]
[323488110,1714047044170,-500.0,0.00011987,2]
[323488111,1714047044179,-558.26544498,0.00011987,2]
[323488112,1714047044188,-500.0,0.00011987,2]
[323488113,1714047044197,-503.43845373,0.00011987,2]
[323488114,1714047044206,-500.0,0.00011987,2]
[323488115,1714047044215,-503.65569498,0.00011987,2]
[323488116,1714047044226,-518.54112473,0.00011987,2]
[323488117,1714047044237,-501.65040393,0.00011987,2]
[323488118,1714047044253,-518.58730711,0.00011987,2]
[323488119,1714047044263,-504.9478846,0.00011987,2]
[323488120,1714047044274,-200.0,0.00011987,2]
[323488121,1714047044283,-311.35728817,0.00011987,2]
[323488122,1714047044292,-500.0,0.00011987,2]
[323488123,1714047044301,-472.04503295,0.00011987,2]
[323488124,1714047044312,-507.45233783,0.00011987,2]
[323488125,1714047044321,-500.0,0.00011987,2]
[323488126,1714047044330,-500.0,0.00011987,2]
[323488127,1714047044339,-500.0,0.00011987,2]
[323488128,1714047044348,-521.27085793,0.00011987,2]
[323488129,1714047044357,-500.0,0.00011987,2]
[323488130,1714047044366,-500.0,0.00011987,2]
[323488131,1714047044375,-500.0,0.00011987,2]
[323488132,1714047044385,-500.0,0.00011987,2]
[323488133,1714047044394,-571.85716188,0.00011987,2]
[323488134,1714047044403,-500.0,0.00011987,2]
[323488135,1714047044412,-381.09178789,0.00011987,2]
[323488136,1714047044422,-500.0,0.00011987,2]
[323488137,1714047044432,-500.0,0.00011987,2]
[323488138,1714047044441,-500.0,0.00011987,2]
[323488139,1714047044451,-254.11691469,0.00011987,2]
[323488140,1714047044461,-500.0,0.00011987,2]
[323488141,1714047044471,-500.0,0.00011987,2]
[323488142,1714047044481,-493.1130009,0.00011987,2]
[323488143,1714047044491,-500.0,0.00011987,2]
[323488144,1714047044505,-500.0,0.00011987,2]
[323488145,1714047044515,-500.0,0.00011987,2]
[323488146,1714047044524,-500.0,0.00011987,2]
[323488147,1714047044534,-181.8274801,0.00011987,2]
[323488148,1714047044543,-500.0,0.00011987,2]
[323488149,1714047044553,-507.77210873,0.00011987,2]
[323488150,1714047044562,-617.07912279,0.00011987,2]
[323488151,1714047044571,-500.0,0.00011987,2]
[323488152,1714047044581,-558.00805095,0.00011987,2]
[323488153,1714047044591,-607.91277987,0.00011987,2]
[323488154,1714047044601,-500.0,0.00011987,2]
[323488155,1714047044610,-500.0,0.00011987,2]
[323488156,1714047044619,-500.0,0.00011987,2]
[323488157,1714047044628,-500.0,0.00011987,2]
[323488158,1714047044638,-500.0,0.00011987,2]
[323488159,1714047044646,-267.45,0.00011987,2]
[323488160,1714047044656,-241.11326682,0.00011987,2]
[323488161,1714047044665,-500.0,0.00011987,2]
[323488162,1714047044674,-500.0,0.00011987,2]
[323488163,1714047044684,-500.0,0.00011987,2]
[323488164,1714047044693,-507.63743612,0.00011987,2]
[323488165,1714047044702,-500.0,0.00011987,2]
[323488166,1714047044712,-500.0,0.00011987,2]
[323488167,1714047044721,-500.0,0.00011987,2]
[323488168,1714047044730,-500.0,0.00011987,2]
[323488169,1714047044739,-500.0,0.00011987,2]
[323488170,1714047044754,-500.0,0.00011987,2]
[323488171,1714047044764,-500.0,0.00011987,2]
[323488172,1714047044774,-287.06829841,0.00011987,2]
[323488173,1714047044783,-614.19385089,0.00011987,2]
[323488174,1714047044792,-500.0,0.00011987,2]
[323488175,1714047044802,-500.0,0.00011987,2]
[323488176,1714047044811,-500.0,0.00011987,2]
[323488177,1714047044821,-500.0,0.00011987,2]
[323488178,1714047044830,-500.0,0.00011987,2]
[323488179,1714047044839,-500.0,0.00011987,2]
[323488180,1714047044848,-500.0,0.00011987,2]
[323488181,1714047044857,-500.0,0.00011987,2]
[323488182,1714047044867,-500.0,0.00011987,2]
[323488183,1714047044876,-500.0,0.00011987,2]
[323488184,1714047044886,-453.02911825,0.00011987,2]
[323488185,1714047044895,-500.0,0.00011987,2]
[323488186,1714047044905,-500.0,0.00011987,2]
[323488187,1714047044914,-500.0,0.00011987,2]
[323488188,1714047044924,-500.0,0.00011987,2]
[323488189,1714047044934,-500.0,0.00011987,2]
[323488190,1714047044944,-500.0,0.00011987,2]
[323488191,1714047044953,-500.0,0.00011987,2]
[323488192,1714047044963,-500.0,0.00011987,2]
[323488193,1714047044972,-512.98321452,0.00011987,2]
[323488194,1714047044981,-209.27821791,0.00011987,2]
[323488195,1714047044990,-500.0,0.00011987,2]
[323488196,1714047045008,-500.0,0.00011987,2]
[323488197,1714047045017,-500.0,0.00011987,2]
[323488198,1714047045027,-500.0,0.00011987,2]
[323488199,1714047045036,-640.98933925,0.00011987,2]
[323488200,1714047045046,-500.0,0.00011987,2]
[323488201,1714047045055,-200.0,0.00011988,10]
[323488202,1714047045065,-187.26885286,0.00011988,2]
[323488203,1714047045074,-503.09893982,0.00011988,2]
[323488204,1714047045086,-501.54135713,0.00011988,2]
[323488205,1714047045100,-500.0,0.00011988,2]
[323488206,1714047045114,-500.0,0.00011988,2]
[323488207,1714047045123,-500.0,0.00011988,2]
[323488208,1714047045132,-502.10341364,0.00011988,2]
[323488209,1714047045141,-504.96672469,0.00011988,2]
[323488210,1714047045150,-500.0,0.00011988,2]
[323488211,1714047045160,-614.2751975,0.00011988,2]
[323488212,1714047045169,-500.0,0.00011988,2]
[323488213,1714047045178,-500.0,0.00011988,2]
[323488214,1714047045188,-500.0,0.00011988,2]
[323488215,1714047045197,-500.0,0.00011988,2]
[323488216,1714047045207,-500.0,0.00011988,2]
[323488217,1714047045216,-500.0,0.00011988,2]
[323488218,1714047045227,-2750.0,0.00012,2]
[323488219,1714047045248,-172.64655777,0.00012073,2]
[323488220,1714047045257,-171.03103542,0.00012161,2]
[323488221,1714047045266,-500.0,0.00012172,2]
[323488222,1714047045276,-500.0,0.00012172,2]
[323488223,1714047045285,-500.0,0.00012172,2]
[323488224,1714047045295,-2577.16,0.00012172,2]
[323488225,1714047045304,-500.0,0.00012172,2]
[323488226,1714047045314,-500.0,0.00012172,2]
[323488227,1714047045324,-500.0,0.00012172,2]
[323488228,1714047045334,-1800.51,0.00012172,2]
[323488229,1714047045344,-500.0,0.00012172,2]
[323488230,1714047045353,-623.63,0.00012172,2]
[323488231,1714047045363,-4304.59,0.00012172,2]
[323488232,1714047045372,-611.46,0.00012172,2]
[323488233,1714047045381,-1029.93,0.00012172,2]
[323488234,1714047045391,-500.0,0.00012172,2]
[323488235,1714047045402,-500.0,0.00012172,2]
[323488236,1714047045411,-500.0,0.00012172,2]
[323488237,1714047045420,-500.0,0.00012172,2]
[323488238,1714047045430,-505.5414793,0.00012172,2]
[323488239,1714047045439,-10278.35,0.00012172,2]
[323488240,1714047045447,-500.0,0.00012172,2]
[323488241,1714047045457,-500.0,0.00012172,2]
[323488242,1714047045466,-2376.62,0.00012172,2]
[323488243,1714047045474,-500.0,0.00012172,2]
[323488244,1714047045484,-500.0,0.00012172,2]
[323488245,1714047045495,-500.0,0.00012172,2]
[323488246,1714047045505,-4022.26,0.00012172,2]
[323488247,1714047045515,-500.0,0.00012172,2]
[323488248,1714047045524,-500.0,0.00012172,2]
[323488249,1714047045533,-4277.92,0.00012172,2]
[323488250,1714047045542,-1413.01,0.00012172,2]
[323488251,1714047045552,-500.0,0.00012172,2]
[323488252,1714047045561,-1599.68,0.00012172,2]
[323488253,1714047045572,-2548.1,0.00012172,2]
[323488254,1714047045581,-500.0,0.00012172,2]
[323488255,1714047045591,-500.0,0.00012172,2]
[323488256,1714047045600,-500.0,0.00012172,2]
[323488257,1714047045610,-571.43,0.00012172,2]
[323488258,1714047045619,-500.0,0.00012172,2]
[323488259,1714047045629,-500.0,0.00012172,2]
[323488260,1714047045639,-500.0,0.00012172,2]
[323488261,1714047045648,-500.0,0.00012172,2]
[323488262,1714047045658,-15680.37,0.00012172,2]
[323488263,1714047045667,-500.0,0.00012172,2]
[323488264,1714047045676,-5249.74,0.00012172,2]
[323488265,1714047045686,-1528.45,0.00012172,2]
[323488266,1714047045695,-500.0,0.00012172,2]
[323488267,1714047045705,-500.0,0.00012172,2]
[323488268,1714047045714,-1181.11,0.00012172,2]
[323488269,1714047045723,-500.0,0.00012172,2]
[323488270,1714047045734,-500.0,0.00012172,2]
[323488271,1714047045743,-500.0,0.00012172,2]
[323488272,1714047045754,-500.0,0.00012172,2]
[323488273,1714047045763,-500.0,0.00012173,2]
[323488274,1714047045772,-500.0,0.00012173,2]
[323488275,1714047045782,-500.0,0.00012173,2]
[323488276,1714047045792,-500.0,0.00012173,2]
[323488277,1714047045803,-495.489,0.00012173,2]
[323488278,1714047045813,-500.0,0.00012173,2]
[323488279,1714047045822,-500.0,0.00012173,2]
[323488280,1714047045831,-405.11156913,0.00012173,2]
[323488281,1714047045842,-391.02406623,0.00012173,2]
[323488282,1714047045853,-500.0,0.00012173,2]
[323488283,1714047045862,-170.91481453,0.00012173,2]
[323488284,1714047045871,-500.0,0.00012173,2]
[323488285,1714047045880,-500.0,0.00012173,2]
[323488286,1714047045889,-294.39250843,0.00012173,2]
[323488287,1714047045899,-500.0,0.00012173,2]
[323488288,1714047045908,-507.77456703,0.00012173,2]
[323488289,1714047045917,-500.0,0.00012173,2]
[323488290,1714047045926,-500.0,0.00012173,2]
[323488291,1714047045935,-327.26,0.00012173,2]
[323488293,1714047045944,-500.0,0.00012173,2]
[323488294,1714047045953,-500.0,0.00012173,2]
[323488295,1714047045963,-500.0,0.00012173,2]
[323488296,1714047045972,-500.0,0.00012173,2]
[323488297,1714047045982,-500.0,0.00012173,2]
[323488299,1714047045990,-500.0,0.00012173,2]
[323488300,1714047046002,-500.0,0.00012173,2]
[323488302,1714047046012,-500.0,0.00012173,2]
[323488304,1714047046022,-500.0,0.00012173,2]
[323488305,1714047046031,-500.0,0.00012173,2]
[323488306,1714047046041,-500.0,0.00012173,2]
[323488307,1714047046050,-500.0,0.00012173,2]
[323488309,1714047046061,-500.0,0.00012173,2]
[323488310,1714047046070,-500.0,0.00012173,2]
[323488311,1714047046080,-500.0,0.00012173,2]
[323488312,1714047046089,-358.03763562,0.00012173,2]
[323488314,1714047046098,-500.0,0.00012173,2]
[323488316,1714047046107,-500.0,0.00012173,2]
[323488317,1714047046116,-357.68,0.00012173,2]
[323488318,1714047046125,-500.0,0.00012173,2]
[323488319,1714047046134,-500.0,0.00012173,2]
[323488320,1714047046143,-500.0,0.00012173,2]
[323488321,1714047046152,-500.0,0.00012173,2]
[323488322,1714047046161,-500.0,0.00012173,2]
[323488323,1714047046170,-500.0,0.00012173,2]
[323488325,1714047046179,-500.0,0.00012173,2]
[323488327,1714047046188,-500.0,0.00012173,2]
[323488329,1714047046197,-500.0,0.00012173,2]
[323488331,1714047046206,-500.0,0.00012173,2]
[323488332,1714047046215,-500.0,0.00012173,2]
[323488333,1714047046227,-500.0,0.00012173,2]
[323488334,1714047046237,-500.0,0.00012173,2]
[323488335,1714047046249,-500.0,0.00012173,2]
[323488336,1714047046259,-500.0,0.00012173,2]
[323488337,1714047046269,-500.0,0.00012173,2]
[323488338,1714047046279,-500.0,0.00012173,2]
[323488339,1714047046288,-500.0,0.00012173,2]
[323488340,1714047046297,-500.0,0.00012173,2]
[323488341,1714047046307,-500.0,0.00012173,2]
[323488342,1714047046318,-500.0,0.00012173,2]
[323488343,1714047046327,-500.0,0.00012173,2]
[323488344,1714047046336,-500.0,0.00012173,2]
[323488345,1714047046345,-500.0,0.00012173,2]
[323488346,1714047046355,-500.0,0.00012173,2]
[323488347,1714047046364,-500.0,0.00012173,2]
[323488348,1714047046374,-500.0,0.00012173,2]
[323488349,1714047046383,-500.0,0.00012173,2]
[323488350,1714047046392,-500.0,0.00012173,2]
[323488351,1714047046403,-500.0,0.00012173,2]
[323488352,1714047046413,-500.0,0.00012173,2]
[323488353,1714047046423,-500.0,0.00012173,2]
[323488354,1714047046432,-500.0,0.00012173,2]
[323488355,1714047046441,-500.0,0.00012173,2]
[323488356,1714047046451,-632.36484998,0.00012173,2]
[323488357,1714047046460,-500.0,0.00012173,2]
[323488358,1714047046470,-500.0,0.00012173,2]
[323488359,1714047046479,-500.0,0.00012173,2]
[323488360,1714047046489,-500.0,0.00012173,2]
[323488361,1714047046499,-500.0,0.00012173,2]
[323488362,1714047046509,-500.0,0.00012173,2]
[323488363,1714047046518,-500.0,0.00012173,2]
[323488364,1714047046527,-500.0,0.00012173,2]
[323488365,1714047046537,-500.0,0.00012173,2]
[323488366,1714047046547,-500.0,0.00012173,2]
[323488367,1714047046556,-500.0,0.00012173,2]
[323488368,1714047046566,-500.0,0.00012173,2]
[323488369,1714047046575,-500.0,0.00012173,2]
[323488370,1714047046584,-500.0,0.00012173,2]
[323488371,1714047046593,-500.0,0.00012173,2]
[323488372,1714047046602,-822.72,0.00012173,2]
[323488373,1714047046611,-283.5025471,0.00012173,2]
[323488375,1714047046639,-216.4974529,0.00012173,2]